Cogmind - Beta 16 @@@ ROGUE MODE // 2025.10.26 @ 21:38:50 Player: Enzo Result: Destroyed by 3Q-OMS(R) with Subdweller Machine Gun Performance ------------- Evolutions (0) 0 Regions Visited (2) 400 Robots Destroyed (40) 200 Value Destroyed (887) 887 Prototype IDs (0) 0 Alien Tech Used (0) 0 Bonus (0) 0 TOTAL SCORE: 1487 Bonus ------- None Cogmind --------- Core Integrity 0/250 Matter 275/300 Energy 196/200 System Corruption 0% Temperature Cool (0) Movement Rolling (107) Ox1 Location -10/Subcaves Parts ------- > --- POWER (1) -------- Subdweller Power Source > --- PROPULSION (2) --- Wheel Subdweller Monowheel > --- UTILITY (2) ------ Scrap Shield > --- WEAPON (2) ------- Subdweller Laser Subdweller Machine Gun > --- INVENTORY (5) ---- Medium Storage Unit Beam Cannon Grenade Launcher Subdweller Shrapnel Launcher Ripper Peak State ------------ > --- POWER ------------ Subdweller Power Source > --- PROPULSION ------- Wheel Subdweller Monowheel > --- UTILITY ---------- Scrap Shield > --- WEAPON ----------- Subdweller Shrapnel Launcher Ripper > --- INVENTORY -------- Medium Storage Unit Subdweller Laser Beam Cannon Subdweller Machine Gun Grenade Launcher [Rating: 15] Favorites ----------- Power Ion Engine Engine Ion Engine Propulsion Light Treads Treads Light Treads Wheel Wheel Utility Seismic Detector Device Seismic Detector Storage Medium Storage Unit Processor Signal Interpreter Protection Scrap Shield Weapon Assault Rifle Energy Gun Subdweller Laser Energy Cannon Beam Cannon Ballistic Gun Assault Rifle Launcher Subdweller Shrapnel Launcher Special Weapon Mining Laser Slashing Weapon Ripper Build | -11 -10 -10 ------- Run | Yrd Mat Sub Slots Evolved . | . . . Power . | . . . Propulsion . | . . . Utility . | . . . Weapon . | . . . Parts Attached 32 | 8 8 16 Power 6 | 1 2 3 Engine 6 | 1 2 3 Core . | . . . Reactor . | . . . Propulsion 7 | 2 1 4 Treads 3 | 2 1 . Leg . | . . . Wheel 4 | . . 4 Hover . | . . . Flight . | . . . Utility 7 | 3 2 2 Device 2 | 2 . . Storage 3 | 1 2 . Processor 1 | . . 1 Hackware . | . . . Protection 1 | . . 1 Artifact . | . . . Weapon 12 | 2 3 7 Energy Gun 1 | . . 1 Energy Cannon 2 | . 1 1 Ballistic Gun 4 | 2 . 2 Ballistic Cannon . | . . . Launcher 3 | . 2 1 Special Weapon 1 | . . 1 Impact Weapon . | . . . Slashing Weapon 1 | . . 1 Piercing Weapon . | . . . Special Melee Weapon . | . . . Unidentified Prototypes . | . . . Parts Lost 2 | . . 2 Power . | . . . Propulsion 1 | . . 1 Utility . | . . . Weapon 1 | . . 1 Highest Loss Streak 2 | . . 2 To Critical Strikes . | . . . Average Backups 7 | . 7 8 Power . | . 1 1 Propulsion . | . . . Utility 2 | . 2 2 Weapon 2 | . 2 3 Tool/Special . | . . . Unused Backups 7 | . 2 5 Power 2 | . 1 1 Propulsion . | . . . Utility 2 | . . 2 Weapon 2 | . 1 1 Tool/Special 1 | . . 1 Average Slot Usage (%) 97 | . 99 93 Engine 14 | . 14 14 Treads 17 | . 27 3 Wheel 9 | . . 22 Device 8 | . 14 1 Storage 12 | . 14 9 Processor 3 | . . 8 Protection 1 | . . 4 Energy Gun 1 | . . 4 Energy Cannon 4 | . 3 6 Ballistic Gun 15 | . 23 4 Launcher 3 | . . 7 Slashing Weapon 1 | . . 4 Peak Build Rating 15 | 7 8 15 Average Rating 9 | 5 7 11 On Entrance 5 | . 7 8 Avg Prop Armor Cover (%) . | . . . Naked Turns . | . . . Heaviest Build 34 | 15 21 34 Greatest Support 40 | 40 40 40 Greatest Overweight (x) 1 | 1 . 1 Average Overweight (x) . | . . . Largest Inventory Capacity 10 | 8 10 10 Average Capacity 8 | 7 9 8 Most Carried 10 | 3 10 10 Average Carried 7 | . 7 8 Final Capacity 10 | 8 10 5 Final Carried 10 | 3 10 5 Class Distribution -------------------- 86% | Mutant 13% | Subdweller-Mutant Dominant Class ---------------- Mutant | -10/Materials Mutant | -10/Subcaves Resources | -11 -10 -10 ----------- Run | Yrd Mat Sub Matter Collected 1405 | 334 625 446 Remotely . | . . . Salvage Created 984 | 159 653 172 Parts 96 | 11 72 13 Haulers Intercepted 2 | . 2 . Recyclers Shooed . | . . . Parts Field Recycled . | . . . Retrieved Matter . | . . . Parts Self-Destructed 6 | . . 6 Prevented . | . . . Parts Restored . | . . . Kills | -11 -10 -10 ------- Run | Yrd Mat Sub Combat Hostiles Destroyed 28 | . 22 6 Guns 14 | . 11 3 Cannons 3 | . 1 2 AOE 11 | . 10 1 Classes Destroyed 11 | 2 7 2 Worker 1 | . 1 . Builder 2 | . 2 . Tunneler 3 | 3 . . Hauler 2 | . 2 . Recycler 1 | 1 . . Operator 1 | . 1 . Watcher 2 | . 2 . Swarmer 9 | . 9 . Grunt 13 | . 13 . Sentry 1 | . . 1 Subdweller 5 | . . 5 Best Kill Streak 5 | 4 5 2 Combat Bots Only 4 | . 4 2 Max Kills in Single Turn 3 | 1 3 1 Gunslinging . | . . . Exploded 2 | . 2 1 Melee . | . . . Uniques/NPCs Destroyed . | . . . Combat | -11 -10 -10 -------- Run | Yrd Mat Sub Hostile Shots Fired 132 | . 90 42 Missed 42 | . 28 14 Hits 90 | . 62 28 Projectile 90 | . 62 28 AOE 2 | . . 2 Critical Strikes 4 | . . 4 Damage Taken 1245 | . 599 646 Core 253 | . 147 106 Absorbed by Shields . | . . . Core Remaining (%) 100 | 100 . . Volleys Fired 140 | 9 59 72 Largest 2 | 2 2 2 Hottest 120 | 40 80 120 Shots Fired 221 | 18 107 96 Gun 161 | 18 95 48 Cannon 16 | . 1 15 Launcher 23 | . 11 12 Special 21 | . . 21 Kinetic 140 | 18 95 27 Thermal 61 | . 1 60 Explosive 20 | . 11 9 Electromagnetic . | . . . Robot Hit Streak 14 | 4 11 14 Robot Miss Streak 4 | 2 4 2 Penetration Max . | . . . Secondary Targets . | . . . Shots Hit Robots 127 | 11 59 57 Core Hits 70 | 5 45 20 Critical Kills . | . . . Critical Parts Destroyed 1 | . 1 . Critical Strikes 1 | . 1 . Destroy 1 | . 1 . Melee Attacks 10 | . . 10 Impact . | . . . Slashing 10 | . . 10 Piercing . | . . . Sneak Attacks . | . . . Combat Hostiles . | . . . Follow-up Attacks . | . . . Damage Inflicted 3189 | 138 1652 1399 Guns 1389 | 138 728 523 Cannons 140 | . 19 121 Explosions 1204 | . 905 299 Melee . | . . . Ramming . | . . . Kinetic 1216 | 138 728 350 Thermal 804 | . 19 785 Explosive 1169 | . 905 264 Electromagnetic . | . . . Impact . | . . . Slashing . | . . . Piercing . | . . . Highest Corruption . | . . . Average Corruption . | . . . Corruption Purged . | . . . Corruption Blocked . | . . . Overload Shots . | . . . Overflow Damage 13 | . 13 . Projectiles . | . . . Explosions 13 | . 13 . Melee . | . . . Knockbacks . | . . . Impact . | . . . Kinetic . | . . . Secondary . | . . . Self-Inflicted Damage 9 | . . 9 Shots 1 | . . 1 Rammed . | . . . Targets Rammed . | . . . Kicked . | . . . Crushed . | . . . Highest Temperature 18 | . 18 17 Average Temperature 9 | . 10 7 Received Heat Transfer 303 | . 216 87 Siege Activations . | . . . Martial Activations . | . . . Shielding Activations . | . . . Robots Disrupted . | . . . Combat Hostiles . | . . . Robots Corrupted . | . . . Combat Hostiles . | . . . Parts Fried . | . . . Impact Corruptions . | . . . Robots Melted . | . . . Combat Hostiles . | . . . Parts Melted . | . . . Heat Transferred 1496 | . 37 1459 Parts Sabotaged . | . . . Parts Stolen . | . . . Parts Stripped . | . . . Power Chain Reactions . | . . . Alert | -11 -10 -10 ------- Run | Yrd Mat Sub Maximum Alert Level 1 | . 1 . Low Security (%) 70 | 100 68 . Level 1 29 | . 31 . Level 2 . | . . . Level 3 . | . . . Level 4 . | . . . Level 5 . | . . . High Security . | . . . Max Security . | . . . Peak Influence 231 | 10 231 . Initial . | . . . Average 138 | 1 149 . Influence Increases 862 | 20 822 20 Destroy 0b10 Robot/C 460 | . 440 20 Destroy 0b10 Robot/NC 60 | 20 40 . Destroy Leader 88 | . 88 . Successful Hack 18 | . 18 . Select Force Hacks 60 | . 60 . Disable Machine 30 | . 30 . Destroy Structure 101 | . 101 . Lose Combat Pursuer 45 | . 45 . Influence Decreases 858 | 20 696 142 Entered New Map 62 | . . 62 Time Decay 626 | 20 546 60 Lost Part 20 | . . 20 Purge Threat 150 | . 150 . Squads Dispatched 5 | . 5 . Investigation 3 | . 3 . Extermination . | . . . Reinforcement 2 | . 2 . Assault . | . . . Garrison . | . . . Intercept . | . . . Searches Triggered . | . . . Construction Impeded . | . . . Haulers Reinforced . | . . . Active Scanning Responses . | . . . Cargo Convoy Interrupts . | . . . Stealth | -11 -10 -10 --------- Run | Yrd Mat Sub Distress Signals 2 | . 2 . Communications Jammed . | . . . Distress Signals . | . . . Times Spotted 43 | . 34 9 Peak Tracking Total 4 | . 4 2 Tactical Retreats 3 | . 3 . Traps | -11 -10 -10 ------- Run | Yrd Mat Sub Traps Triggered 3 | . 3 . Indirectly . | . . . Trap Hack Attempts . | . . . Triggered . | . . . Disarmed . | . . . Reprogrammed . | . . . Reused . | . . . Traps Extracted . | . . . Installed . | . . . Triggered . | . . . Machines | -11 -10 -10 ---------- Run | Yrd Mat Sub Machines Disabled 2 | . 2 . Max in Single Turn 1 | . 1 . Machines Repaired . | . . . Machines Dismantled . | . . . Machines Sabotaged . | . . . Overloaded Fab Kills . | . . . Hacking | -11 -10 -10 --------- Run | Yrd Mat Sub Machines Accessed 10 | . 8 2 Terminals 6 | . 6 . Fabricators . | . . . Repair Stations . | . . . Recycling Units 2 | . 2 . Scanalyzers . | . . . Garrison Access . | . . . Total Hacks 31 | . 28 3 Successful 19 | . 16 3 Failed 12 | . 12 . Catastrophic 1 | . 1 . Database Lockouts . | . . . Manual 21 | . 21 . Terminals 26 | . 26 . Fabricators . | . . . Repair Stations . | . . . Recycling Units 2 | . 2 . Scanalyzers . | . . . Garrison Access . | . . . Terminal Hacks 13 | . 10 3 Record 1 | . . 1 Robot Analysis 3 | . 3 . Open Door 1 | . . 1 Level Access Points 1 | . 1 . Terminal Index 1 | . 1 . Alert Level 1 | . 1 . Unreport Threat 1 | . 1 . Locate Traps 3 | . 3 . Release Object 1 | . . 1 Fabricator Hacks . | . . . Repair Station Hacks . | . . . Recycling Unit Hacks . | . . . Scanalyzer . | . . . Garrison Access Hacks . | . . . Unauthorized Hacks 6 | . 6 . Terminals 4 | . 4 . Botnet 4 | . 4 . Fabricators . | . . . Repair Stations . | . . . Recycling Units 2 | . 2 . Tunnel 2 | . 2 . Scanalyzers . | . . . Garrison Access . | . . . Data Cores Recovered . | . . . Used . | . . . Hacking Detections 6 | . 6 . Full Trace Events . | . . . Feedback Events . | . . . Feedback Blocked . | . . . Robot Schematics Acquired . | . . . Robots Built . | . . . Authchips . | . . . Time . | . . . Total Robot Build Rating . | . . . Part Schematics Acquired . | . . . Parts Built . | . . . Authchips . | . . . Time . | . . . Total Part Build Rating . | . . . Part Studies Acquired . | . . . Parts Repaired . | . . . Time . | . . . Parts Recycled . | . . . Recycled Matter . | . . . Retrieved Matter . | . . . Retrieved Components . | . . . Parts Scanalyzed . | . . . Part Schematics Acquired . | . . . Parts Damaged . | . . . Bothacking | -11 -10 -10 ------------ Run | Yrd Mat Sub Used RIF Installer . | . . . Robots Hacked . | . . . Non-combat . | . . . Combat . | . . . Robot Hacks Applied . | . . . Relay Couplers Released . | . . . Fabnet Peak Effective % . | . . . Robots Rewired . | . . . Allies Hacked . | . . . Hacks Repelled . | . . . Allies | -11 -10 -10 -------- Run | Yrd Mat Sub Total Allies . | . . . Largest Group . | . . . Highest-Rated Group . | . . . Highest-Rated Ally . | . . . Total Orders . | . . . Ally Attacks . | . . . Total Damage . | . . . Kills . | . . . Allies Corrupted . | . . . Allies Melted . | . . . Intel | -11 -10 -10 ------- Run | Yrd Mat Sub Active Infowar (turns) 1992 | 68 1824 100 Seismic 1992 | 68 1824 100 Robot Analysis Total 3 | . 3 . Derelict Logs Recovered 2 | . . 2 Drone Launches . | . . . Drone Recoveries . | . . . Exploration | -11 -10 -10 ------------- Run | Yrd Mat Sub Turns Passed 3286 | 156 1824 1306 Spaces Moved 1886 | 79 841 966 Core 14 | 14 . . Treads 982 | 65 841 76 Legs . | . . . Wheels 890 | . . 890 Hover . | . . . Flight . | . . . Fastest Speed 50 | 50 160 95 Average Speed 130 | 142 160 104 Slowest Speed 240 | 160 160 240 Overloaded Moves . | . . . Propulsion Burnouts . | . . . Robots Hopped . | . . . Potential Cave-ins . | . . . Cave-ins Triggered . | . . . Exploration Rate (%) 56 | 5 100 65 Regions Visited 2 Branch Regions 1 Pre-discovered Areas 4 | . 2 2 Known Exits Taken . | . . . Unknown Exits Taken 2 | 1 1 . Scrap Searched 3 | . . 3 Spaces Dug 13 | . . 13 Terrain Destroyed 207 | . 114 93 Melee . | . . . Projectile . | . . . AOE 207 | . 114 93 Terrain Rammed . | . . . Walls Destroyed . | . . . Machines Disabled . | . . . Actions | -11 -10 -10 --------- Run | Yrd Mat Sub Total 2420 | 101 1205 1114 Wait 278 | 2 266 10 Move 1884 | 78 840 966 Hop . | . . . Pick Up 20 | 3 9 8 Fast Attach 16 | 8 5 3 Attach 4 | . . 4 Detach 1 | . . 1 Swap 39 | . 18 21 Drop 24 | 1 8 15 Fire 140 | 9 59 72 Melee 10 | . . 10 Ram . | . . . Kick . | . . . Crush . | . . . Escape Stasis . | . . . Rewire . | . . . Trap . | . . . Miscellaneous 4 | . . 4 Route ------- -11/Scrapyard -10/Materials (discovered 5 exits: *Mat x3 / [*Min] / *Sub) -10/Subcaves (discovered 2 exits: *Mat x2) History --------- Turn | Location | Event 16 | -11/Scrapyard | Discovered new exit (range 15) 157 | -11/Scrapyard | Entered Materials 317 | -10/Materials | Build established: Mutant 596 | -10/Materials | Discovered new exit (range 13) 1155 | -10/Materials | Discovered new exit (range 15) 1217 | -10/Materials | Discovered new exit (range 13) 1284 | -10/Materials | Discovered new exit (range 16) 1624 | -10/Materials | Discovered new exit (range 4) 1651 | -10/Materials | Identified exit to Materials 1784 | -10/Materials | Core integrity fell below 50% 1981 | -10/Materials | Entered Subcaves 2028 | -10/Subcaves | Discovered new exit (range 14) 2029 | -10/Subcaves | Learned Materials security intel 2045 | -10/Subcaves | Ambushed by Subdwellers from Twisted Machinery 2065 | -10/Subcaves | Core integrity fell below 20% 2082 | -10/Subcaves | Identified exit to Materials 2291 | -10/Subcaves | Shifting Twisted Machinery released Battle Rifle 2339 | -10/Subcaves | Shifting Twisted Machinery released Sub. Power Source 2623 | -10/Subcaves | Shifting Twisted Machinery released Ripper 2675 | -10/Subcaves | Shifting Twisted Machinery released Riot Gun 2758 | -10/Subcaves | Released subatomizers from SUBCON Basin 3004 | -10/Subcaves | Discovered exit to Materials (range 10) 3008 | -10/Subcaves | Learned location of Zion (-6) 3008 | -10/Subcaves | Met a Zionite searching for "candidates" 3045 | -10/Subcaves | Disturbed a concealed Subdweller 3139 | -10/Subcaves | Build established: Subdweller-Mutant 3287 | -10/Subcaves | Destroyed by 3Q-OMS(R) with Subdweller Machine Gun Last Messages --------------- 03064_ 4C-LD3(R): "ARGHSUB!" 03098_ 4C-LD3(R) destroyed. 03104_ CU-4W1(R) destroyed. 03113_ Scrap Shield Fragment affixed to Scrap Shield (+45). [Achievement: Survival Of The Most Covered] 03114_ Acquired 31 matter. 03116_ Scrap Shield Fragment affixed to Scrap Shield (+46). 03118_ Dropped Sub. Power Source. 03130_ Scrap Shield Fragment affixed to Scrap Shield (+32). 03131_ Acquired 30 matter. 03133_ Acquired 12 matter. 03139_ Dropped Sub. Machine Gun. 03148_ Acquired 34 matter. 03151_ Acquired 1 matter. 03157_ Subatomizers dissect the Mak. Leg. 03210_ Critical hit (Burn: +37). 03216_ Y-45 Defender destroyed. 03221_ Beam Rifle fries itself beyond repair. 03227_ Lgt. Treads fries itself beyond repair. 03230_ Acquired 39 matter. Map ----- +----------------------------------------------------+ | ??????????????# #??????????????????????? | | ??????????????## #??????????????????????? | | ??????????????# #????#?????????????????? | | ??????????????# ##???# ?????????????????? | | ??????????????## #??## ?????????????????? | | ??????????????## ##?# ??####???????????? | | ??????????????# #?? ## ????????????? | | ??????????????#### #?? #????????????? | | ????????????????## ##? #######??????? | | ????????????????# ##? # #??????? | | ??????????????### #? ??????? | | ??????????????# #?# ????????? | | ??????????????## #?# #?????????? | | ???????????????# #### ##????????? | | ???????????????# ### #### #??? | | ???????????????# "" #??? | | ???????????????# ????? | | ???????????????# ##??????????? | | ???????????????# #" ###?????????? | | ???????????????# #"" #?????????? | | ??????????????## """" #????????? | | ??????????????# " " #???????? | | ??????????????# ##### ??????? | | ??????????????## ##???## ????? | | ???????????????## #?????# #???? | | ???????????????# @#?????# ###???? | | ???????????????## #?????# ##?????? | | ???????????????# #?????# #??????? | | ???????????????## #?????## #??????? | | ???????????????# #???????### ##??????? | | ???????????????# #?????????? #???????? | | ???????????????# R##????????? ??????????? | | ??????????????## #####?????????????????? | | ??????????????# ## #?????????????????? | | ??????????????# #?????????????????? | | ??????????????# """" #?????????????????? | | ??????????????# """""" #?????????????????? | | ??????????????# "" "#????????????????? | | ??????????????## "" "#???????????????? | | ???????????????### "" "" ??????????????? | | ?????????????????#####""" ??????????????? | | ?????????????????????# "" # ??????????????? | | ????????????????????? ""###?#?????????????? | | ?????????????????????#?#??????????????????? | | ??????????????????????????????????????????? | | ??????????????????????????????????????????? | | ??????????????????????????????????????????? | | ??????????????????????????????????????????? | | ??????????????????????????????????????????? | | ??????????????????????????????????????????? | +----------------------------------------------------+ Best States ------------- Heat Dissipation 25 Energy Generation 15 Energy Capacity 250 Matter Stores 300 Matter Capacity 300 Sight Range 16 Terrain Scan Density 10 Armor Coverage 800 Evasion (%) 50 Recoil Reduction 2 Item Schematics ----------------- None Robot Schematics ------------------ None Fabricated ------------ Nothing Repaired ---------- Nothing Studied --------- None Alien Tech Used ----------------- None Achievements -------------- Survival Of The Most Covered There's More Where That Came From Challenges ------------ None Game ------ Seed ScanWeaponTether Manual? 0 Play Time 00:31:31 Cumulative 72.6 hours Start 2025.10.25 @ 22:21:03 End 2025.10.26 @ 21:38:50 Sessions 3 Manual Loads 0 Difficulty Rogue Special Mode None Game No. 153 Rogue 153 Adventurer 0 Explorer 0 Win Type - Total 0 Types 0/0/0/0/0/0/0/0/0/0 Lore% 35 Gallery% 39 Achievement% 22 Wizard Run 0 Options --------- Layout 0 ASCII 0 Keyboard 0 Movement Numpad Keybinds 0 Fullscreen 2 Font 24/Smallcaps Map View 76x50 Zoom Use 0% Tactical HUD 1 Map Filters NONE Filters NONE Steam 1 RUN: 114ea95a-2d3d-454b-bd2b-74b56828be21